fUSD/lending_fUSD_20240625
["ID","MTS","AMOUNT","RATE_DAILY","PERIOD"]
[330397989,1719347438978,-500.0,0.00019178,2]
[330397991,1719347438988,-500.0,0.00019178,2]
[330397993,1719347438997,-500.0,0.00019178,2]
[330397995,1719347439007,-635.08,0.00019178,2]
[330397997,1719347439017,-500.0,0.00019178,2]
[330397999,1719347439027,-500.0,0.00019178,2]
[330398001,1719347439038,-500.0,0.00019178,2]
[330398003,1719347439048,-500.0,0.00019178,2]
[330398006,1719347439059,-500.0,0.00019178,2]
[330398008,1719347439069,-500.0,0.00019178,2]
[330398009,1719347439079,-500.0,0.00019178,2]
[330398012,1719347439089,-500.0,0.00019178,2]
[330398013,1719347439099,-500.0,0.00019178,2]
[330398015,1719347439108,-500.0,0.00019178,2]
[330398018,1719347439118,-500.0,0.00019178,2]
[330398020,1719347439129,-500.0,0.00019178,2]
[330398022,1719347439139,-500.0,0.00019178,2]
[330398024,1719347439150,-500.0,0.00019178,2]
[330398026,1719347439160,-500.0,0.00019178,2]
[330398028,1719347439170,-500.0,0.00019178,2]
[330398030,1719347439180,-612.92,0.00019178,2]
[330398032,1719347439190,-500.0,0.00019178,2]
[330398033,1719347439200,-500.0,0.00019178,2]
[330398035,1719347439209,-500.0,0.00019178,2]
[330398037,1719347439219,-500.0,0.00019178,2]
[330398040,1719347439229,-643.97,0.00019178,2]
[330398042,1719347439240,-500.0,0.00019178,2]
[330398044,1719347439250,-500.0,0.00019178,2]
[330398046,1719347439262,-500.0,0.00019178,2]
[330398048,1719347439272,-500.0,0.00019178,2]
[330398050,1719347439283,-505.51750165,0.00019178,2]
[330398052,1719347439293,-500.0,0.00019178,2]
[330398054,1719347439306,-500.0,0.00019178,2]
[330398056,1719347439316,-500.0,0.00019178,2]
[330398058,1719347439326,-500.0,0.00019178,2]
[330398060,1719347439336,-500.0,0.00019178,2]
[330398061,1719347439346,-622.2,0.00019178,2]
[330398063,1719347439357,-500.0,0.00019178,2]
[330398066,1719347439368,-500.0,0.00019178,2]
[330398067,1719347439378,-504.33,0.00019178,2]
[330398070,1719347439394,-500.0,0.00019178,2]
[330398071,1719347439404,-500.0,0.00019178,2]
[330398074,1719347439418,-500.0,0.00019178,2]
[330398077,1719347439428,-500.0,0.00019178,2]
[330398081,1719347439438,-500.0,0.00019178,2]
[330398084,1719347439450,-6295.6,0.00019178,2]
[330398086,1719347439460,-500.0,0.00019178,2]
[330398088,1719347439471,-500.0,0.00019178,2]
[330398090,1719347439481,-500.0,0.00019178,2]
[330398091,1719347439491,-500.0,0.00019178,2]
[330398094,1719347439502,-500.0,0.00019178,2]
[330398096,1719347439514,-686.21,0.00019178,2]
[330398098,1719347439524,-500.0,0.00019178,2]
[330398100,1719347439534,-500.0,0.00019178,2]
[330398102,1719347439544,-500.0,0.00019178,2]
[330398104,1719347439554,-190.24191731,0.00019178,2]
[330398106,1719347439563,-880.93,0.00019178,2]
[330398107,1719347439573,-1961.13,0.00019178,2]
[330398110,1719347439583,-500.0,0.00019178,2]
[330398112,1719347439593,-918.95,0.00019178,2]
[330398113,1719347439603,-252.33993776,0.00019178,2]
[330398115,1719347439613,-713.77,0.00019178,2]
[330398117,1719347439623,-500.0,0.00019178,2]
[330398120,1719347439635,-500.0,0.00019178,2]
[330398122,1719347439644,-500.0,0.00019178,2]
[330398124,1719347439656,-500.0,0.00019178,2]
[330398126,1719347439666,-2148.37,0.00019178,2]
[330398128,1719347439676,-500.0,0.00019178,2]
[330398130,1719347439686,-500.0,0.00019178,2]
[330398132,1719347439695,-500.0,0.00019178,2]
[330398134,1719347439705,-589.22,0.00019178,2]
[330398136,1719347439715,-500.0,0.00019178,2]
[330398138,1719347439725,-500.0,0.00019178,2]
[330398140,1719347439735,-500.0,0.00019178,2]
[330398142,1719347439744,-599.9,0.00019178,2]
[330398144,1719347439754,-1733.54,0.00019178,2]
[330398146,1719347439764,-500.0,0.00019178,2]
[330398148,1719347439774,-549.18,0.00019178,2]
[330398150,1719347439785,-500.0,0.00019178,2]
[330398152,1719347439795,-500.0,0.00019178,2]
[330398154,1719347439805,-500.0,0.00019178,2]
[330398155,1719347439814,-500.0,0.00019178,2]
[330398157,1719347439824,-500.0,0.00019178,2]
[330398159,1719347439834,-500.0,0.00019178,2]
[330398161,1719347439844,-500.0,0.00019178,2]
[330398163,1719347439854,-500.0,0.00019178,2]
[330398165,1719347439865,-500.0,0.00019178,2]
[330398167,1719347439874,-500.0,0.00019178,2]
[330398169,1719347439885,-741.6,0.00019178,2]
[330398171,1719347439896,-500.0,0.00019178,2]
[330398173,1719347439906,-500.0,0.00019178,2]
[330398175,1719347439916,-500.0,0.00019178,2]
[330398177,1719347439926,-720.18,0.00019178,2]
[330398179,1719347439937,-2250.56,0.00019178,2]
[330398181,1719347439947,-500.0,0.00019178,2]
[330398183,1719347439957,-1031.37,0.00019178,2]
[330398185,1719347439967,-657.12,0.00019178,2]
[330398187,1719347439976,-547.41,0.00019178,2]
[330398189,1719347439986,-500.0,0.00019178,2]
[330398191,1719347439996,-500.0,0.00019178,2]
[330398193,1719347440006,-648.05697995,0.00019178,2]
[330398195,1719347440015,-1761.66,0.00019178,2]
[330398197,1719347440025,-500.0,0.00019178,2]
[330398198,1719347440035,-589.26,0.00019178,2]
[330398199,1719347440044,-500.0,0.00019178,2]
[330398200,1719347440054,-500.0,0.00019178,2]
[330398201,1719347440064,-571.83,0.00019178,2]
[330398202,1719347440074,-1430.45,0.00019178,2]
[330398203,1719347440084,-500.0,0.00019178,2]
[330398204,1719347440095,-500.0,0.00019178,2]
[330398205,1719347440105,-593.64,0.00019178,2]
[330398206,1719347440115,-646.7,0.00019178,2]
[330398207,1719347440125,-500.0,0.00019178,2]
[330398208,1719347440135,-500.0,0.00019178,2]
[330398209,1719347440145,-500.0,0.00019178,2]
[330398210,1719347440154,-500.0,0.00019178,2]
[330398212,1719347440165,-2569.22,0.00019178,2]
[330398214,1719347440175,-1531.62,0.00019178,2]
[330398216,1719347440185,-500.0,0.00019178,2]
[330398218,1719347440195,-500.0,0.00019178,2]
[330398220,1719347440206,-500.0,0.00019178,2]
[330398222,1719347440216,-979.44,0.00019178,2]
[330398224,1719347440226,-605.78,0.00019178,2]
[330398226,1719347440236,-500.0,0.00019178,2]
[330398228,1719347440246,-500.0,0.00019178,2]
[330398230,1719347440255,-1162.96,0.00019178,2]
[330398232,1719347440265,-500.0,0.00019178,2]
[330398234,1719347440275,-500.0,0.00019178,2]
[330398236,1719347440286,-500.0,0.00019178,2]
[330398238,1719347440296,-1664.28,0.00019178,2]
[330398240,1719347440311,-500.0,0.00019178,2]
[330398242,1719347440322,-500.0,0.00019178,2]
[330398244,1719347440332,-500.0,0.00019178,2]
[330398246,1719347440343,-500.0,0.00019178,2]
[330398248,1719347440354,-500.0,0.00019178,2]
[330398250,1719347440364,-1518.01,0.00019178,2]
[330398252,1719347440375,-500.0,0.00019178,2]
[330398254,1719347440388,-2412.59,0.00019178,2]
[330398256,1719347440399,-500.0,0.00019178,2]
[330398258,1719347440409,-500.0,0.00019178,2]
[330398260,1719347440419,-778.7,0.00019178,2]
[330398262,1719347440429,-344.60332302,0.00019178,2]
[330398264,1719347440439,-500.0,0.00019178,2]
[330398266,1719347440448,-500.0,0.00019178,2]
[330398268,1719347440458,-500.0,0.00019178,2]
[330398270,1719347440468,-2603.98,0.00019178,2]
[330398272,1719347440478,-500.0,0.00019178,2]
[330398274,1719347440487,-500.0,0.00019178,2]
[330398276,1719347440498,-500.0,0.00019178,2]
[330398278,1719347440508,-1162.42,0.00019178,2]
[330398280,1719347440517,-996.48,0.00019178,2]
[330398282,1719347440528,-500.0,0.00019178,2]
[330398284,1719347440538,-500.0,0.00019178,2]
[330398286,1719347440548,-500.0,0.00019178,2]
[330398288,1719347440558,-500.0,0.00019178,2]
[330398290,1719347440568,-500.0,0.00019178,2]
[330398292,1719347440578,-500.0,0.00019178,2]
[330398294,1719347440589,-830.7,0.00019178,2]
[330398296,1719347440599,-500.0,0.00019178,2]
[330398298,1719347440608,-500.0,0.00019178,2]
[330398300,1719347440619,-1255.0,0.00019178,2]
[330398302,1719347440629,-500.0,0.00019178,2]
[330398304,1719347440639,-500.0,0.00019178,2]
[330398306,1719347440648,-1066.43,0.00019178,2]
[330398308,1719347440659,-765.55,0.00019178,2]
[330398310,1719347440669,-500.0,0.00019178,2]
[330398312,1719347440679,-594.15,0.00019178,2]
[330398314,1719347440689,-500.0,0.00019178,2]
[330398316,1719347440699,-568.28,0.00019178,2]
[330398318,1719347440710,-801.62,0.00019178,2]
[330398320,1719347440719,-500.0,0.00019178,2]
[330398322,1719347440729,-696.68,0.00019178,2]
[330398324,1719347440739,-500.0,0.00019178,2]
[330398326,1719347440749,-933.84,0.00019178,2]
[330398329,1719347440759,-500.0,0.00019178,2]
[330398331,1719347440770,-500.0,0.00019178,2]
[330398333,1719347440781,-500.0,0.00019178,2]
[330398335,1719347440791,-500.0,0.00019178,2]
[330398337,1719347440801,-500.0,0.00019178,2]
[330398339,1719347440811,-1273.66,0.00019178,2]
[330398341,1719347440821,-836.87,0.00019178,2]
[330398343,1719347440831,-1140.14,0.00019178,2]
[330398345,1719347440841,-504.52,0.00019178,2]
[330398347,1719347440850,-856.76,0.00019178,2]
[330398349,1719347440859,-599.18,0.00019178,2]
[330398351,1719347440870,-500.0,0.00019178,2]
[330398353,1719347440880,-500.0,0.00019178,2]
[330398355,1719347440891,-975.96,0.00019178,2]
[330398357,1719347440900,-500.0,0.00019178,2]
[330398359,1719347440910,-618.52127284,0.00019178,2]
[330398361,1719347440920,-500.0,0.00019178,2]
[330398363,1719347440929,-500.0,0.00019178,2]
[330398365,1719347440938,-500.0,0.00019178,2]
[330398367,1719347440948,-500.0,0.00019178,2]
[330398369,1719347440958,-500.0,0.00019178,2]
[330398371,1719347440968,-500.0,0.00019178,2]
[330398373,1719347440978,-500.0,0.00019178,2]
[330398375,1719347440988,-500.0,0.00019178,2]
[330398377,1719347440998,-1026.11,0.00019178,2]
[330398379,1719347441009,-500.0,0.00019178,2]
[330398381,1719347441019,-1000.3,0.00019178,2]
[330398383,1719347441029,-2569.75,0.00019178,2]
[330398385,1719347441039,-500.0,0.00019178,2]
[330398387,1719347441049,-500.0,0.00019178,2]
[330398389,1719347441059,-500.0,0.00019178,2]
[330398391,1719347441069,-1317.82,0.00019178,2]
[330398393,1719347441079,-1683.51,0.00019178,2]
[330398395,1719347441089,-500.0,0.00019178,2]
[330398397,1719347441099,-1570.66,0.00019178,2]
[330398399,1719347441108,-500.0,0.00019178,2]
[330398401,1719347441118,-741.14,0.00019178,2]
[330398403,1719347441129,-1929.86,0.00019178,2]
[330398405,1719347441139,-500.0,0.00019178,2]
[330398407,1719347441148,-1673.32,0.00019178,2]
[330398409,1719347441158,-500.0,0.00019178,2]
[330398410,1719347441169,-787.19,0.00019178,2]
[330398413,1719347441179,-990.64,0.00019178,2]
[330398414,1719347441189,-1861.12,0.00019178,2]
[330398417,1719347441200,-750.75,0.00019178,2]
[330398419,1719347441210,-500.0,0.00019178,2]
[330398421,1719347441219,-615.92,0.00019178,2]
[330398423,1719347441230,-500.0,0.00019178,2]
[330398425,1719347441240,-500.0,0.00019178,2]
[330398427,1719347441249,-1547.98,0.00019178,2]
[330398429,1719347441259,-983.57,0.00019178,2]
[330398431,1719347441269,-500.0,0.00019178,2]
[330398433,1719347441278,-2643.6,0.00019178,2]
[330398435,1719347441288,-500.0,0.00019178,2]
[330398437,1719347441298,-500.0,0.00019178,2]
[330398439,1719347441312,-500.0,0.00019178,2]
[330398441,1719347441322,-500.0,0.00019178,2]
[330398443,1719347441333,-1433.41,0.00019178,2]
[330398445,1719347441343,-500.0,0.00019178,2]
[330398447,1719347441354,-500.0,0.00019178,2]
[330398449,1719347441363,-1672.98,0.00019178,2]
[330398451,1719347441373,-500.0,0.00019178,2]
[330398453,1719347441386,-1198.39,0.00019178,2]
[330398455,1719347441396,-500.0,0.00019178,2]
[330398457,1719347441405,-322.26054305,0.00019178,2]
[330398459,1719347441415,-905.27,0.00019178,2]
[330398461,1719347441426,-1705.27,0.00019178,2]
[330398463,1719347441435,-500.0,0.00019178,2]
[330398465,1719347441445,-500.0,0.00019178,2]
[330398467,1719347441454,-755.88,0.00019178,2]
[330398469,1719347441464,-500.0,0.00019178,2]
[330398471,1719347441473,-500.0,0.00019178,2]
[330398473,1719347441483,-649.78,0.00019178,2]
[330398475,1719347441493,-658.53,0.00019178,2]
[330398477,1719347441503,-1783.33,0.00019178,2]
[330398479,1719347441512,-500.0,0.00019178,2]
[330398481,1719347441522,-500.0,0.00019178,2]
[330398483,1719347441531,-544.78,0.00019178,2]
[330398485,1719347441540,-500.0,0.00019178,2]
[330398487,1719347441550,-172.64789326,0.00019178,2]
[330398489,1719347441559,-613.84,0.00019178,2]
[330398491,1719347441568,-1616.54,0.00019178,2]
[330398493,1719347441578,-3532.6,0.00019178,2]
[330398495,1719347441587,-500.0,0.00019178,2]
[330398497,1719347441597,-866.73,0.00019178,2]
[330398499,1719347441607,-500.0,0.00019178,2]
[330398501,1719347441616,-711.93,0.00019178,2]
[330398503,1719347441625,-1039.92,0.00019178,2]
[330398505,1719347441636,-500.0,0.00019178,2]
[330398507,1719347441645,-504.22,0.00019178,2]
[330398509,1719347441654,-1336.38,0.00019178,2]
[330398511,1719347441664,-1085.67,0.00019178,2]
[330398513,1719347441673,-945.94,0.00019178,2]
[330398515,1719347441682,-500.0,0.00019178,2]
[330398517,1719347441691,-500.0,0.00019178,2]
[330398519,1719347441700,-1115.75,0.00019178,2]
[330398521,1719347441709,-500.0,0.00019178,2]
[330398523,1719347441718,-638.82,0.00019178,2]
[330398525,1719347441728,-1134.1,0.00019178,2]
[330398527,1719347441737,-500.0,0.00019178,2]
[330398529,1719347441746,-500.0,0.00019178,2]
[330398531,1719347441755,-1477.42,0.00019178,2]
[330398533,1719347441764,-500.0,0.00019178,2]
[330398535,1719347441774,-766.59,0.00019178,2]
[330398537,1719347441783,-550.2,0.00019178,2]
[330398539,1719347441792,-500.0,0.00019178,2]
[330398541,1719347441802,-500.0,0.00019178,2]
[330398543,1719347441811,-500.0,0.00019178,2]
[330398544,1719347441820,-1163.59,0.00019178,2]
[330398545,1719347441830,-1505.45,0.00019178,2]
[330398546,1719347441840,-500.0,0.00019178,2]
[330398547,1719347441849,-500.0,0.00019178,2]
[330398548,1719347441859,-500.0,0.00019178,2]
[330398549,1719347441869,-1590.84,0.00019178,2]
[330398550,1719347441878,-728.95,0.00019178,2]
[330398551,1719347441889,-731.89,0.00019178,2]
[330398552,1719347441899,-511.41,0.00019178,2]
[330398553,1719347441909,-500.0,0.00019178,2]
[330398554,1719347441919,-569.35,0.00019178,2]
[330398555,1719347441928,-500.0,0.00019178,2]
[330398556,1719347441938,-500.0,0.00019178,2]
[330398557,1719347441947,-641.35,0.00019178,2]
[330398558,1719347441957,-1168.25,0.00019178,2]
[330398559,1719347441967,-529.25,0.00019178,2]
[330398560,1719347441977,-657.3,0.00019178,2]
[330398561,1719347441987,-500.0,0.00019178,2]
[330398562,1719347441998,-1241.74,0.00019178,2]
[330398563,1719347442008,-1519.82,0.00019178,2]
[330398564,1719347442018,-500.0,0.00019178,2]
[330398565,1719347442028,-799.24,0.00019178,2]
[330398566,1719347442038,-500.0,0.00019178,2]
[330398567,1719347442048,-638.52,0.00019178,2]
[330398568,1719347442057,-1861.53,0.00019178,2]
[330398569,1719347442067,-1664.2,0.00019178,2]
[330398570,1719347442077,-509.96,0.00019178,2]
[330398571,1719347442086,-1546.12,0.00019178,2]
[330398588,1719347442309,-726.25,0.00019178,2]
[330398594,1719347442335,-1163.31,0.00019178,2]
[330398596,1719347442345,-819.47,0.00019178,2]
[330398598,1719347442355,-500.0,0.00019178,2]
[330398600,1719347442365,-500.0,0.00019178,2]
[330398602,1719347442374,-618.33,0.00019178,2]
[330398604,1719347442386,-500.0,0.00019178,2]
[330398606,1719347442395,-1083.25,0.00019178,2]
[330398608,1719347442405,-500.0,0.00019178,2]
[330398610,1719347442419,-500.0,0.00019178,2]
[330398612,1719347442429,-500.0,0.00019178,2]
[330398614,1719347442438,-500.0,0.00019178,2]
[330398616,1719347442448,-500.0,0.00019178,2]
[330398618,1719347442458,-2198.04,0.00019178,2]
[330398620,1719347442469,-1803.83,0.00019178,2]
[330398622,1719347442479,-1577.01,0.00019178,2]
[330398624,1719347442489,-500.0,0.00019178,2]
[330398626,1719347442500,-500.0,0.00019178,2]
[330398628,1719347442510,-500.0,0.00019178,2]
[330398630,1719347442521,-1020.79,0.00019178,2]
[330398632,1719347442531,-500.0,0.00019178,2]
[330398634,1719347442541,-500.0,0.00019178,2]
[330398636,1719347442551,-890.63,0.00019178,2]
[330398638,1719347442560,-2560.66,0.00019178,2]
[330398640,1719347442570,-1254.69,0.00019178,2]
[330398642,1719347442580,-745.19,0.00019178,2]
[330398644,1719347442589,-513.59,0.00019178,2]
[330398646,1719347442600,-500.0,0.00019178,2]
[330398648,1719347442609,-500.0,0.00019178,2]
[330398650,1719347442619,-665.75,0.00019178,2]
[330398652,1719347442628,-500.0,0.00019178,2]
[330398654,1719347442642,-500.0,0.00019178,2]
[330398656,1719347442651,-500.0,0.00019178,2]
[330398659,1719347442660,-1142.26,0.00019178,2]
[330398661,1719347442670,-951.26,0.00019178,2]
[330398663,1719347442681,-515.52,0.00019178,2]
[330398665,1719347442690,-1317.2,0.00019178,2]
[330398667,1719347442699,-500.0,0.00019178,2]
[330398668,1719347442709,-500.0,0.00019178,2]
[330398670,1719347442718,-500.0,0.00019178,2]
[330398672,1719347442728,-500.0,0.00019178,2]
[330398674,1719347442737,-841.61,0.00019178,2]
[330398676,1719347442746,-500.0,0.00019178,2]
[330398678,1719347442755,-692.33,0.00019178,2]
[330398680,1719347442766,-500.0,0.00019178,2]
[330398682,1719347442775,-697.96,0.00019178,2]
[330398684,1719347442784,-1589.32,0.00019178,2]
[330398687,1719347442794,-696.78,0.00019178,2]
[330398689,1719347442804,-647.85,0.00019178,2]
[330398691,1719347442814,-500.0,0.00019178,2]
[330398693,1719347442823,-500.0,0.00019178,2]
[330398695,1719347442833,-910.05,0.00019178,2]
[330398697,1719347442843,-500.0,0.00019178,2]
[330398699,1719347442853,-255.45997463,0.00019178,2]
[330398701,1719347442865,-14297.98,0.00019178,2]
[330398703,1719347442874,-500.0,0.00019178,2]
[330398705,1719347442885,-504.8,0.00019178,2]
[330398707,1719347442894,-1267.89,0.00019178,2]
[330398708,1719347442904,-500.0,0.00019178,2]
[330398709,1719347442912,-503.0,0.00019178,2]
[330398710,1719347442921,-2785.25,0.00019178,2]
[330398711,1719347442931,-771.94,0.00019178,2]
[330398712,1719347442940,-502.9,0.00019178,2]
[330398713,1719347442948,-741.23,0.00019178,2]
[330398714,1719347442958,-2052.23,0.00019178,2]
[330398715,1719347442967,-500.0,0.00019178,2]
[330398716,1719347442976,-980.44,0.00019178,2]
[330398717,1719347442985,-878.87,0.00019178,2]
[330398718,1719347442995,-940.94,0.00019178,2]
[330398719,1719347443005,-1071.02,0.00019178,2]
[330398720,1719347443014,-1229.87,0.00019178,2]
[330398721,1719347443023,-1227.68,0.00019178,2]
[330398723,1719347443032,-500.0,0.00019178,2]
[330398726,1719347443042,-500.0,0.00019178,2]
[330398728,1719347443051,-500.0,0.00019178,2]
[330398730,1719347443060,-570.49,0.00019178,2]
[330398732,1719347443069,-500.0,0.00019178,2]
[330398734,1719347443078,-516.4,0.00019178,2]
[330398736,1719347443088,-500.0,0.00019178,2]
[330398738,1719347443097,-500.0,0.00019178,2]
[330398740,1719347443106,-792.7,0.00019178,2]
[330398742,1719347443115,-1136.59,0.00019178,2]
[330398744,1719347443125,-974.71,0.00019178,2]
[330398746,1719347443136,-689.36,0.00019178,2]
[330398748,1719347443145,-1180.21,0.00019178,2]
[330398750,1719347443155,-658.15,0.00019178,2]
[330398752,1719347443165,-500.0,0.00019178,2]
[330398754,1719347443174,-500.0,0.00019178,2]
[330398756,1719347443184,-1185.19,0.00019178,2]
[330398758,1719347443193,-1307.58,0.00019178,2]
[330398760,1719347443203,-1337.53,0.00019178,2]
[330398762,1719347443211,-2148.04,0.00019178,2]
[330398764,1719347443220,-6727.52,0.00019178,2]
[330398766,1719347443230,-500.0,0.00019178,2]
[330398768,1719347443239,-517.7,0.00019178,2]
[330398770,1719347443248,-507.46,0.00019178,2]
[330398772,1719347443257,-986.05,0.00019178,2]
[330398774,1719347443267,-1081.05,0.00019178,2]
[330398776,1719347443276,-500.0,0.00019178,2]
[330398778,1719347443286,-500.0,0.00019178,2]
[330398780,1719347443295,-500.0,0.00019178,2]
[330398783,1719347443306,-605.32,0.00019178,2]
[330398784,1719347443317,-500.0,0.00019178,2]
[330398786,1719347443326,-592.28,0.00019178,2]
[330398789,1719347443336,-1964.62,0.00019178,2]
[330398791,1719347443346,-1269.81,0.00019178,2]
[330398792,1719347443355,-816.85,0.00019178,2]
[330398795,1719347443364,-932.99,0.00019178,2]
[330398797,1719347443375,-617.1,0.00019178,2]
[330398799,1719347443387,-580.84,0.00019178,2]
[330398801,1719347443397,-500.0,0.00019178,2]
[330398803,1719347443407,-1749.8,0.00019178,2]
[330398804,1719347443416,-500.0,0.00019178,2]
[330398806,1719347443425,-2489.9,0.00019178,2]
[330398808,1719347443434,-1210.01,0.00019178,2]
[330398810,1719347443444,-653.91,0.00019178,2]
[330398813,1719347443453,-500.0,0.00019178,2]
[330398815,1719347443462,-3184.21,0.00019178,2]
[330398817,1719347443472,-500.0,0.00019178,2]
[330398819,1719347443482,-901.41,0.00019178,2]
[330398821,1719347443491,-500.0,0.00019178,2]
[330398823,1719347443500,-1057.08,0.00019178,2]
[330398825,1719347443510,-914.13,0.00019178,2]
[330398827,1719347443519,-500.0,0.00019178,2]
[330398829,1719347443528,-500.0,0.00019178,2]
[330398831,1719347443538,-500.0,0.00019178,2]
[330398832,1719347443547,-762.62,0.00019178,2]
[330398835,1719347443557,-155.97021765,0.00019178,2]
[330398890,1719347444064,-196.22844649,0.00019039,2]
[330398892,1719347444074,-344.02978235,0.00019178,2]
[330398894,1719347444083,-361.2027148,0.00019178,2]
[330398896,1719347444095,-455.9272852,0.00019178,2]
[330398899,1719347444105,-318.03174853,0.00019178,2]
[330398901,1719347444117,-181.96825147,0.00019178,2]
[330398903,1719347444126,-556.82108613,0.00019178,2]
[330398906,1719347444144,-503.79891387,0.00019178,2]
[330398908,1719347444153,-500.0,0.00019178,2]
[330398910,1719347444163,-500.0,0.00019178,2]
[330398912,1719347444172,-2446.60737474,0.00019178,2]
[330398914,1719347444183,-1028.443,0.00019178,2]
[330398916,1719347444195,-1245.82962526,0.00019178,2]
[330398918,1719347444204,-500.0,0.00019178,2]
[330398920,1719347444213,-1418.03,0.00019178,2]
[330398922,1719347444223,-146.44803312,0.00019178,2]
[330398924,1719347444234,-353.55196688,0.00019178,2]
[330398927,1719347444244,-500.0,0.00019178,2]
[330398929,1719347444254,-500.0,0.00019178,2]
[330398931,1719347444264,-3010.75,0.00019178,2]
[330398933,1719347444273,-500.0,0.00019178,2]
[330398935,1719347444283,-500.0,0.00019178,2]
[330398937,1719347444292,-1257.9,0.00019178,2]
[330398939,1719347444302,-500.0,0.00019178,2]
[330398941,1719347444316,-500.0,0.00019178,2]
[330398943,1719347444326,-500.0,0.00019178,2]
[330398945,1719347444335,-523.01,0.00019178,2]
[330398947,1719347444345,-858.39,0.00019178,2]
[330398949,1719347444355,-3372.7,0.00019178,2]
[330398951,1719347444365,-2936.53,0.00019178,2]
[330398953,1719347444374,-500.0,0.00019178,2]
[330398955,1719347444386,-646.46,0.00019178,2]
[330398957,1719347444397,-500.0,0.00019178,2]
[330398959,1719347444406,-500.0,0.00019178,2]
[330398961,1719347444416,-500.0,0.00019178,2]
[330398963,1719347444425,-2073.94,0.00019178,2]
[330398965,1719347444435,-787.28567932,0.00019178,2]
[330398967,1719347444447,-302.27432068,0.00019178,2]
[330398969,1719347444457,-793.33,0.00019178,2]
[330398971,1719347444466,-500.0,0.00019178,2]
[330398973,1719347444474,-500.0,0.00019178,2]
[330398974,1719347444485,-1175.4,0.00019178,2]
[330398975,1719347444494,-775.38,0.00019178,2]
[330398976,1719347444503,-503.99,0.00019178,2]
[330398977,1719347444512,-500.0,0.00019178,2]
[330398978,1719347444521,-1330.34,0.00019178,2]
[330398979,1719347444531,-320.69450211,0.00019178,2]
[330398980,1719347444542,-959.72914699,0.00019178,2]
[330398981,1719347444553,-3146.8163509,0.00019178,2]
[330398982,1719347444562,-1275.4,0.00019178,2]
[330398983,1719347444571,-523.89,0.00019178,2]
[330398984,1719347444581,-615.85,0.00019178,2]
[330398985,1719347444590,-667.1,0.00019178,2]
[330398986,1719347444599,-1062.37,0.00019178,2]
[330398987,1719347444608,-585.09,0.00019178,2]
[330398988,1719347444689,-1079.07992161,0.00019178,2]
[330398989,1719347444745,-5732.78007839,0.00019178,2]
[330398990,1719347444756,-873.14,0.00019178,2]
[330398991,1719347444765,-737.7,0.00019178,2]
[330398992,1719347444774,-1785.92,0.00019178,2]
[330398993,1719347444783,-866.35,0.00019178,2]
[330398994,1719347444792,-500.0,0.00019178,2]